Workbook

Sheet Input
A1: No.Anggota | B1: : | C1: 2027 | D1: =C1&TEXT(MATCH(C3,P2:P13,0),"00") -> 202702
A2: Nama | B2: : | C2: =VLOOKUP(C1,M2:N11,2,0) -> didin | L2: 1 | M2: 2025 | N2: dudun | O2: Simpanan1 | P2: Jan
A3: Bulan | B3: : | C3: Feb | L3: 2 | M3: 2026 | N3: wiwin | O3: Simpanan2 | P3: Feb
A4: Tabel Name | B4: : | C4: =VLOOKUP(C1,M2:O11,3,0) -> Simpanan3 | L4: 3 | M4: 2027 | N4: didin | O4: Simpanan3 | P4: Mar
A5: Potongan Simpanan : | C5: =C1&TEXT(MATCH(C3,P2:P13,0),"00") -> 202702 | L5: 4 | M5: 2028 | N5: dadan | O5: Simpanan4 | P5: Apr
A6: Pokok | B6: Rp. : | C6: 0 | L6: 5 | M6: 2029 | N6: wawa | O6: Simpanan5 | P6: May
A7: Wajib | B7: Rp. : | C7: 2000 | L7: 6 | M7: 2030 | N7: wowo | O7: Simpanan6 | P7: Jun
A8: Sukarela | B8: Rp. : | C8: 3000 | L8: 7 | M8: 2031 | N8: wiwi | O8: Simpanan7 | P8: Jul
A9: Wisata | B9: Rp. : | C9: 4000 | L9: 8 | M9: 2032 | N9: dada | O9: Simpanan8 | P9: Aug
A10: Pendidikan | B10: Rp. : | C10: 999999 | L10: 9 | M10: 2033 | N10: dea | O10: Simpanan9 | P10: Sep
A11: SIHARA | B11: Rp. : | C11: 6000 | L11: 10 | M11: 2034 | N11: deni | O11: Simpanan10 | P11: Oct
A12: Potongan Pinjaman : | L12: 11 | P12: Nov
A13: J. Panjang | B13: Rp. : | C13: 100 | L13: 12 | P13: Dec
A14: Ringan | B14: Rp. : | C14: 200
A15: Barang | B15: Rp. : | C15: 300
A16: Potongan Jasa :
A17: J. Panjang | B17: Rp. : | C17: 500
A18: Ringan | B18: Rp. : | C18: 600
A19: Barang | B19: Rp. : | C19: 700
A20: Dana Sosial Rp. : | B20: Rp. : | C20: 0
A21: Beras | B21: Rp. : | C21: 0
A22: lain-lain | B22: Rp. : | C22: 0
A23: Total Potongan Rp. : | C23: 1017399

Sheet Sheet2
A1: 3 | Q1: Kolom bantu
A2: Simpanan
A3: Nama | B3: : | C3: =VLOOKUP(A1,Input!$L$2:$N$11,3,0) -> didin
A4: No. Angg | B4: : | C4: =VLOOKUP(A1,Input!$L$2:$N$11,2,0) -> 2027 | J4: Jml.Dividen : | K4: =IF(P19=0,0,Q20) -> 0
A5: Bulan | C5: SP | D5: SW | E5: SS | F5: Tarik Simp | G5: SIHARA | J5: Pendidikan | M5: WISATA | P5: Saldo
G6: Simpanan | H6: Tarik Simp. | I6: saldo | J6: Simpanan | K6: Tarik Simp. | L6: saldo | M6: Simpanan | N6: Tarik Simp. | O6: saldo | P6: SW&SS
A7: Pindahan | I7: =+G7 -> 0 | L7: =+J7 -> 0 | O7: =+M7 -> 0 | P7: =+D7+E7 -> 0
A8: Januari | C8: =IFERROR(INDEX(Table3[Column7],$Q8),0) -> 2000 | D8: =IFERROR(INDEX(Table3[Column8],$Q8),0) -> 3000 | E8: =IFERROR(INDEX(Table3[Column9],$Q8),0) -> 4000 | G8: =IFERROR(INDEX(Table3[Column11],$Q8),0) -> 6000 | I8: =+I7+M8-H8 -> 4000 | J8: =IFERROR(INDEX(Table3[Column10],$Q8),0) -> 999999 | L8: =+L7+J8-K8 -> 999999 | M8: =IFERROR(INDEX(Table3[Column9],$Q8),0) -> 4000 | O8: =+O7+M8-N8 -> 4000 | P8: =+P7+D8+E8-F8 -> 7000 | Q8: =golek($C$4&TEXT(ROW(A1),"00"))-1 -> 1
A9: Pebruari | C9: =IFERROR(INDEX(Table3[Column7],$Q9),0) -> 2000 | D9: =IFERROR(INDEX(Table3[Column8],$Q9),0) -> 3000 | E9: =IFERROR(INDEX(Table3[Column9],$Q9),0) -> 4000 | G9: =IFERROR(INDEX(Table3[Column11],$Q9),0) -> 6000 | I9: =+I8+G9-H9 -> 10000 | J9: =IFERROR(INDEX(Table3[Column10],$Q9),0) -> 999999 | L9: 1999998 | M9: =IFERROR(INDEX(Table3[Column9],$Q9),0) -> 4000 | O9: 8000 | P9: =+P8+D9+E9-F9 -> 14000 | Q9: =golek($C$4&TEXT(ROW(A2),"00"))-1 -> 2
A10: Maret | C10: =IFERROR(INDEX(Table3[Column7],$Q10),0) -> 2000 | D10: =IFERROR(INDEX(Table3[Column8],$Q10),0) -> 3000 | E10: =IFERROR(INDEX(Table3[Column9],$Q10),0) -> 4000 | G10: =IFERROR(INDEX(Table3[Column11],$Q10),0) -> 6000 | I10: 16000 | J10: =IFERROR(INDEX(Table3[Column10],$Q10),0) -> 999999 | L10: 2999997 | M10: =IFERROR(INDEX(Table3[Column9],$Q10),0) -> 4000 | O10: 12000 | P10: 21000 | Q10: 3
A11: april | C11: =IFERROR(INDEX(Table3[Column7],$Q11),0) -> 2000 | D11: =IFERROR(INDEX(Table3[Column8],$Q11),0) -> 3000 | E11: =IFERROR(INDEX(Table3[Column9],$Q11),0) -> 4000 | G11: =IFERROR(INDEX(Table3[Column11],$Q11),0) -> 6000 | I11: 22000 | J11: =IFERROR(INDEX(Table3[Column10],$Q11),0) -> 999999 | L11: 3999996 | M11: =IFERROR(INDEX(Table3[Column9],$Q11),0) -> 4000 | O11: 16000 | P11: 28000 | Q11: 4
A12: Mei | C12: =IFERROR(INDEX(Table3[Column7],$Q12),0) -> 0 | D12: =IFERROR(INDEX(Table3[Column8],$Q12),0) -> 0 | E12: =IFERROR(INDEX(Table3[Column9],$Q12),0) -> 0 | G12: =IFERROR(INDEX(Table3[Column11],$Q12),0) -> 0 | I12: 22000 | J12: =IFERROR(INDEX(Table3[Column10],$Q12),0) -> 0 | L12: 3999996 | M12: =IFERROR(INDEX(Table3[Column9],$Q12),0) -> 0 | O12: 16000 | P12: 28000 | Q12: -1
A13: Juni | C13: =IFERROR(INDEX(Table3[Column7],$Q13),0) -> 0 | D13: =IFERROR(INDEX(Table3[Column8],$Q13),0) -> 0 | E13: =IFERROR(INDEX(Table3[Column9],$Q13),0) -> 0 | G13: =IFERROR(INDEX(Table3[Column11],$Q13),0) -> 0 | I13: 22000 | J13: =IFERROR(INDEX(Table3[Column10],$Q13),0) -> 0 | L13: 3999996 | M13: =IFERROR(INDEX(Table3[Column9],$Q13),0) -> 0 | O13: 16000 | P13: 28000 | Q13: -1
A14: Juli | C14: =IFERROR(INDEX(Table3[Column7],$Q14),0) -> 0 | D14: =IFERROR(INDEX(Table3[Column8],$Q14),0) -> 0 | E14: =IFERROR(INDEX(Table3[Column9],$Q14),0) -> 0 | G14: =IFERROR(INDEX(Table3[Column11],$Q14),0) -> 0 | I14: 22000 | J14: =IFERROR(INDEX(Table3[Column10],$Q14),0) -> 0 | L14: 3999996 | M14: =IFERROR(INDEX(Table3[Column9],$Q14),0) -> 0 | O14: 16000 | P14: 28000 | Q14: -1
A15: Agustus | C15: =IFERROR(INDEX(Table3[Column7],$Q15),0) -> 0 | D15: =IFERROR(INDEX(Table3[Column8],$Q15),0) -> 0 | E15: =IFERROR(INDEX(Table3[Column9],$Q15),0) -> 0 | G15: =IFERROR(INDEX(Table3[Column11],$Q15),0) -> 0 | I15: 22000 | J15: =IFERROR(INDEX(Table3[Column10],$Q15),0) -> 0 | L15: 3999996 | M15: =IFERROR(INDEX(Table3[Column9],$Q15),0) -> 0 | O15: 16000 | P15: 28000 | Q15: -1
A16: September | C16: =IFERROR(INDEX(Table3[Column7],$Q16),0) -> 0 | D16: =IFERROR(INDEX(Table3[Column8],$Q16),0) -> 0 | E16: =IFERROR(INDEX(Table3[Column9],$Q16),0) -> 0 | G16: =IFERROR(INDEX(Table3[Column11],$Q16),0) -> 0 | I16: 22000 | J16: =IFERROR(INDEX(Table3[Column10],$Q16),0) -> 0 | L16: 3999996 | M16: =IFERROR(INDEX(Table3[Column9],$Q16),0) -> 0 | O16: 16000 | P16: 28000 | Q16: -1
A17: Oktober | C17: =IFERROR(INDEX(Table3[Column7],$Q17),0) -> 0 | D17: =IFERROR(INDEX(Table3[Column8],$Q17),0) -> 0 | E17: =IFERROR(INDEX(Table3[Column9],$Q17),0) -> 0 | G17: =IFERROR(INDEX(Table3[Column11],$Q17),0) -> 0 | I17: 22000 | J17: =IFERROR(INDEX(Table3[Column10],$Q17),0) -> 0 | L17: 3999996 | M17: =IFERROR(INDEX(Table3[Column9],$Q17),0) -> 0 | O17: 16000 | P17: 28000 | Q17: -1
A18: Nopember | C18: =IFERROR(INDEX(Table3[Column7],$Q18),0) -> 0 | D18: =IFERROR(INDEX(Table3[Column8],$Q18),0) -> 0 | E18: =IFERROR(INDEX(Table3[Column9],$Q18),0) -> 0 | G18: =IFERROR(INDEX(Table3[Column11],$Q18),0) -> 0 | I18: 22000 | J18: =IFERROR(INDEX(Table3[Column10],$Q18),0) -> 0 | L18: 3999996 | M18: =IFERROR(INDEX(Table3[Column9],$Q18),0) -> 0 | O18: 16000 | P18: 28000 | Q18: -1
A19: Desember | C19: =IFERROR(INDEX(Table3[Column7],$Q19),0) -> 0 | D19: =IFERROR(INDEX(Table3[Column8],$Q19),0) -> 0 | E19: =IFERROR(INDEX(Table3[Column9],$Q19),0) -> 0 | G19: =IFERROR(INDEX(Table3[Column11],$Q19),0) -> 0 | I19: 22000 | J19: =IFERROR(INDEX(Table3[Column10],$Q19),0) -> 0 | L19: 3999996 | M19: =IFERROR(INDEX(Table3[Column9],$Q19),0) -> 0 | O19: 16000 | P19: 28000 | Q19: -1
A20: Jumlah | C20: =SUM(C7:C19) -> 8000 | D20: =IF(P19=0,(0),SUM(D7:D19)) -> 12000 | E20: =IF(P19=0,(0),SUM(E7:E19)) -> 16000 | F20: =SUM(F7:F19) -> 0 | G20: =SUM(G7:G19) -> 24000 | H20: =SUM(H8:H19) -> 0 | I20: =+I19 -> 22000 | J20: =SUM(J7:J19) -> 3999996 | K20: =SUM(K8:K19) -> 0 | L20: =+L19 -> 3999996 | M20: =SUM(M7:M19) -> 16000 | N20: =SUM(N8:N19) -> 0 | O20: =+O19 -> 16000
A22: Pinjaman | J22: Jml. BJP : | K22: =+J38 -> 2000
A23: Bulan | C23: Salpin lalu | E23: Pinj.Baru | H23: Angsuran | K23: Bunga Pinj. | N23: Salpin bln ini | P23: PROPISI
D24: J. Panjang | E24: Ringan | F24: Barang | G24: J. Panjang | H24: Ringan | I24: Barang | J24: J. Panjang | K24: Ringan | L24: Barang | M24: J. Panjang | N24: Ringan | O24: Barang
A25: Pindahan
A26: Januari | C26: 0 | G26: =IFERROR(INDEX(Table3[Column13],$Q26),0) -> 100 | H26: =IFERROR(INDEX(Table3[Column14],$Q26),0) -> 200 | I26: =IFERROR(INDEX(Table3[Column15],$Q26),0) -> 300 | J26: =IFERROR(INDEX(Table3[Column17],$Q26),0) -> 500 | K26: =IFERROR(INDEX(Table3[Column18],$Q26),0) -> 600 | L26: =IFERROR(INDEX(Table3[Column19],$Q26),0) -> 700 | M26: =+M25+D26-G26 -> -100 | N26: =+N25+E26-H26 -> -200 | O26: =+O25+F26-I26 -> -300 | P26: 0 | Q26: =golek($C$4&TEXT(ROW(A1),"00"))-1 -> 1
A27: Pebruari | C27: 0 | G27: =IFERROR(INDEX(Table3[Column13],$Q27),0) -> 100 | H27: =IFERROR(INDEX(Table3[Column14],$Q27),0) -> 200 | I27: =IFERROR(INDEX(Table3[Column15],$Q27),0) -> 300 | J27: =IFERROR(INDEX(Table3[Column17],$Q27),0) -> 500 | K27: =IFERROR(INDEX(Table3[Column18],$Q27),0) -> 600 | L27: =IFERROR(INDEX(Table3[Column19],$Q27),0) -> 700 | M27: -200 | N27: -400 | O27: -600 | Q27: =golek($C$4&TEXT(ROW(A2),"00"))-1 -> 2
A28: Maret | C28: 0 | G28: =IFERROR(INDEX(Table3[Column13],$Q28),0) -> 100 | H28: =IFERROR(INDEX(Table3[Column14],$Q28),0) -> 200 | I28: =IFERROR(INDEX(Table3[Column15],$Q28),0) -> 300 | J28: =IFERROR(INDEX(Table3[Column17],$Q28),0) -> 500 | K28: =IFERROR(INDEX(Table3[Column18],$Q28),0) -> 600 | L28: =IFERROR(INDEX(Table3[Column19],$Q28),0) -> 700 | M28: -300 | N28: -600 | O28: -900 | P28: 0 | Q28: 3
A29: April | C29: 0 | G29: =IFERROR(INDEX(Table3[Column13],$Q29),0) -> 100 | H29: =IFERROR(INDEX(Table3[Column14],$Q29),0) -> 200 | I29: =IFERROR(INDEX(Table3[Column15],$Q29),0) -> 300 | J29: =IFERROR(INDEX(Table3[Column17],$Q29),0) -> 500 | K29: =IFERROR(INDEX(Table3[Column18],$Q29),0) -> 600 | L29: =IFERROR(INDEX(Table3[Column19],$Q29),0) -> 700 | M29: -400 | N29: -800 | O29: -1200 | P29: 0 | Q29: 4
A30: Mei | C30: 0 | G30: =IFERROR(INDEX(Table3[Column13],$Q30),0) -> 0 | H30: =IFERROR(INDEX(Table3[Column14],$Q30),0) -> 0 | I30: =IFERROR(INDEX(Table3[Column15],$Q30),0) -> 0 | J30: =IFERROR(INDEX(Table3[Column17],$Q30),0) -> 0 | K30: =IFERROR(INDEX(Table3[Column18],$Q30),0) -> 0 | L30: =IFERROR(INDEX(Table3[Column19],$Q30),0) -> 0 | M30: =+M29+D30-G30 -> -400 | N30: -800 | O30: -1200 | P30: 0 | Q30: -1
A31: Juni | C31: 0 | G31: =IFERROR(INDEX(Table3[Column13],$Q31),0) -> 0 | H31: =IFERROR(INDEX(Table3[Column14],$Q31),0) -> 0 | I31: =IFERROR(INDEX(Table3[Column15],$Q31),0) -> 0 | J31: =IFERROR(INDEX(Table3[Column17],$Q31),0) -> 0 | K31: =IFERROR(INDEX(Table3[Column18],$Q31),0) -> 0 | L31: =IFERROR(INDEX(Table3[Column19],$Q31),0) -> 0 | M31: -400 | N31: -800 | O31: -1200 | P31: 0 | Q31: -1
A32: Juli | C32: 0 | G32: =IFERROR(INDEX(Table3[Column13],$Q32),0) -> 0 | H32: =IFERROR(INDEX(Table3[Column14],$Q32),0) -> 0 | I32: =IFERROR(INDEX(Table3[Column15],$Q32),0) -> 0 | J32: =IFERROR(INDEX(Table3[Column17],$Q32),0) -> 0 | K32: =IFERROR(INDEX(Table3[Column18],$Q32),0) -> 0 | L32: =IFERROR(INDEX(Table3[Column19],$Q32),0) -> 0 | M32: -400 | N32: -800 | O32: -1200 | P32: 0 | Q32: -1
A33: Agustus | C33: 0 | G33: =IFERROR(INDEX(Table3[Column13],$Q33),0) -> 0 | H33: =IFERROR(INDEX(Table3[Column14],$Q33),0) -> 0 | I33: =IFERROR(INDEX(Table3[Column15],$Q33),0) -> 0 | J33: =IFERROR(INDEX(Table3[Column17],$Q33),0) -> 0 | K33: =IFERROR(INDEX(Table3[Column18],$Q33),0) -> 0 | L33: =IFERROR(INDEX(Table3[Column19],$Q33),0) -> 0 | M33: -400 | N33: -800 | O33: -1200 | P33: =+D33*0.01 -> 0 | Q33: -1
A34: September | C34: 0 | G34: =IFERROR(INDEX(Table3[Column13],$Q34),0) -> 0 | H34: =IFERROR(INDEX(Table3[Column14],$Q34),0) -> 0 | I34: =IFERROR(INDEX(Table3[Column15],$Q34),0) -> 0 | J34: =IFERROR(INDEX(Table3[Column17],$Q34),0) -> 0 | K34: =IFERROR(INDEX(Table3[Column18],$Q34),0) -> 0 | L34: =IFERROR(INDEX(Table3[Column19],$Q34),0) -> 0 | M34: -400 | N34: -800 | O34: -1200 | P34: 0 | Q34: -1
A35: Oktober | C35: 0 | G35: =IFERROR(INDEX(Table3[Column13],$Q35),0) -> 0 | H35: =IFERROR(INDEX(Table3[Column14],$Q35),0) -> 0 | I35: =IFERROR(INDEX(Table3[Column15],$Q35),0) -> 0 | J35: =IFERROR(INDEX(Table3[Column17],$Q35),0) -> 0 | K35: =IFERROR(INDEX(Table3[Column18],$Q35),0) -> 0 | L35: =IFERROR(INDEX(Table3[Column19],$Q35),0) -> 0 | M35: -400 | N35: -800 | O35: -1200 | P35: 0 | Q35: -1
A36: Nopember | C36: 0 | G36: =IFERROR(INDEX(Table3[Column13],$Q36),0) -> 0 | H36: =IFERROR(INDEX(Table3[Column14],$Q36),0) -> 0 | I36: =IFERROR(INDEX(Table3[Column15],$Q36),0) -> 0 | J36: =IFERROR(INDEX(Table3[Column17],$Q36),0) -> 0 | K36: =IFERROR(INDEX(Table3[Column18],$Q36),0) -> 0 | L36: =IFERROR(INDEX(Table3[Column19],$Q36),0) -> 0 | M36: -400 | N36: -800 | O36: -1200 | P36: 0 | Q36: -1
A37: Desember | C37: 0 | G37: =IFERROR(INDEX(Table3[Column13],$Q37),0) -> 0 | H37: =IFERROR(INDEX(Table3[Column14],$Q37),0) -> 0 | I37: =IFERROR(INDEX(Table3[Column15],$Q37),0) -> 0 | J37: =IFERROR(INDEX(Table3[Column17],$Q37),0) -> 0 | K37: =IFERROR(INDEX(Table3[Column18],$Q37),0) -> 0 | L37: =IFERROR(INDEX(Table3[Column19],$Q37),0) -> 0 | M37: -400 | N37: -800 | O37: -1200 | P37: 0 | Q37: -1
A38: Jumlah | C38: =SUM(C26:C37) -> 0 | D38: =SUM(D26:D37) -> 0 | E38: 0 | F38: 0 | G38: 400 | H38: 800 | I38: 1200 | J38: 2000 | K38: 2400 | L38: 2800 | P38: =SUM(P25:P37) -> 0

Sheet Data
A1: Column1 | B1: Column2 | C1: Column3 | D1: Column4 | E1: Column5 | F1: Column6 | G1: Column7 | H1: Column8 | I1: Column9 | J1: Column10 | K1: Column11 | L1: Column12 | M1: Column13 | N1: Column14 | O1: Column15 | P1: Column16 | Q1: Column17 | R1: Column18 | S1: Column19 | T1: Column20 | U1: Column21 | V1: Column22 | W1: Column23 | X1: Column24 | Y1: Column25 | Z1: Column26 | AA1: Column27 | AB1: Column28 | AC1: Column29 | AD1: Column30 | AE1: Column31
A2: 2027 | B2: didin | C2: Jan | D2: Simpanan3 | E2: 202701 | F2: 0 | G2: 2000 | H2: 3000 | I2: 4000 | J2: 999999 | K2: 6000 | M2: 100 | N2: 200 | O2: 300 | Q2: 500 | R2: 600 | S2: 700 | T2: 0 | U2: 0 | V2: 0 | W2: 1017399
A3: 2027 | B3: didin | C3: Feb | D3: Simpanan3 | E3: 202702 | F3: 0 | G3: 2000 | H3: 3000 | I3: 4000 | J3: 999999 | K3: 6000 | M3: 100 | N3: 200 | O3: 300 | Q3: 500 | R3: 600 | S3: 700 | T3: 0 | U3: 0 | V3: 0 | W3: 1017399
A4: 2027 | B4: didin | C4: Mar | D4: Simpanan3 | E4: 202703 | F4: 0 | G4: 2000 | H4: 3000 | I4: 4000 | J4: 999999 | K4: 6000 | M4: 100 | N4: 200 | O4: 300 | Q4: 500 | R4: 600 | S4: 700 | T4: 0 | U4: 0 | V4: 0 | W4: 1017399
A5: 2027 | B5: didin | C5: Apr | D5: Simpanan3 | E5: 202704 | F5: 0 | G5: 2000 | H5: 3000 | I5: 4000 | J5: 999999 | K5: 6000 | M5: 100 | N5: 200 | O5: 300 | Q5: 500 | R5: 600 | S5: 700 | T5: 0 | U5: 0 | V5: 0 | W5: 1017399
A6: 2025 | B6: dudun | C6: May | D6: Simpanan1 | E6: 202505 | F6: 0 | G6: 2000 | H6: 3000 | I6: 4000 | J6: 999999 | K6: 6000 | M6: 100 | N6: 200 | O6: 300 | Q6: 500 | R6: 600 | S6: 700 | T6: 0 | U6: 0 | V6: 0 | W6: 1017399
A7: 2025 | B7: dudun | C7: Jun | D7: Simpanan1 | E7: 202506 | F7: 0 | G7: 2000 | H7: 3000 | I7: 4000 | J7: 999999 | K7: 6000 | M7: 100 | N7: 200 | O7: 300 | Q7: 500 | R7: 600 | S7: 700 | T7: 0 | U7: 0 | V7: 0 | W7: 1017399
